[Event "GCT Superbet Romania 2022"]
[Site "Bucharest"]
[Date "2022.05.14"]
[Round "9.1"]
[White "Dominguez Perez, Leinier"]
[Black "So, Wesley"]
[Result "1/2-1/2"]
[ECO "C54"]
[WhiteElo "2753"]
[BlackElo "2766"]
[Annotator "TA"]
[PlyCount "72"]
[EventDate "2022.05.05"]
[EventType "tourn"]
[EventCountry "ROU"]
[SourceTitle "playchess.com"]
[Source "ChessBase"]
[SourceQuality "1"]
[TimeControl "40/5400+30:1800+30"]

{[%evp 10,72,10,13,8,14,9,8,7,18,8,14,25,19,35,26,25,17,16,12,16,5,10,0,0,0,0,15,20,2,9,25,11,8,20,18,14,17,10,0,0,4,0,-15,-6,-18,-13,-18,-18,-18,-18,-21,-3,-46,-46,-47,-47,-47,-46,-47,0,-40,0,-49,0]} 1. e4 {[%emt 0:00:03]} e5 {[%emt 0:00:05]} 2. Nf3 {[%emt 0:00:07]} Nc6 {[%emt 0:00:03]} 3. Bc4 {[%emt 0:00:07]} Bc5 {[%emt 0:01:09]} 4. c3 {[%emt 0:00:08]} Nf6 {[%emt 0:00:14]} 5. d3 {[%emt 0:00:06]} d6 {[%emt 0:01:58]} 6. O-O {[%emt 0:00:11]} a5 $1 {[%emt 0:00:51][%mdl 4] Prevents b4. 6...a5 is setting a new trend. C54: Giuoco Piano: 4 c3 Nf6, main lines with 5 d4 and 5 d3.} 7. Re1 {[%emt 0:00:18]} O-O {[%emt 0:01:45]} 8. h3 {[%emt 0:00:15]} h6 {[%emt 0:01:03] The position is equal.} (8... Be6 9. Bb5 Ba7 10. Nbd2 Ne7 11. d4 Ng6 12. Ba4 Nh5 13. Nf1 Nhf4 14. Ng3 c6 15. Bc2 Qd7 16. Nf5 f6 17. Be3 Kh8 18. dxe5 fxe5 {1-0 (34) Dominguez Perez,L (2752)-So,W (2772) Berlin 2022}) 9. Nbd2 {[%emt 0:00:35][%cal Bb1d2,Bd2f1,Bf1g3][%mdl 32]} Be6 {[%emt 0:00:12]} 10. Bb5 {[%emt 0:00:07]} Nd7 {[%emt 0:00:54]} 11. Nf1 {[%emt 0:00:09]} d5 {[%emt 0:01:10]} (11... f5 {feels hotter.} 12. exf5 Bxf5 13. d4 Bb6) 12. Be3 {[%emt 0:00:10] [#]} dxe4 $146 {[%emt 0:01:25]} ({Predecessor:} 12... Bd6 13. Ng3 dxe4 14. dxe4 Qf6 15. Qe2 Rfd8 16. Bc4 Ne7 17. a4 Bxc4 18. Qxc4 Qe6 19. Qxe6 fxe6 {0-1 (60) Giri,A (2773)-Maghsoodloo,P (2699) Chess.com INT 2022}) 13. dxe4 {[%emt 0:00:40]} Qf6 {[%emt 0:00:03]} 14. Qe2 {[%emt 0:00:38]} Rfd8 {[%emt 0:01:02]} 15. Red1 {[%emt 0:01:32] [#] Threatens to win with Bxc6.} Bf8 {[%emt 0:01:12]} 16. Ng3 {[%emt 0:01:44]} a4 {[%emt 0:00:11]} 17. Nh2 {[%emt 0:11:23]} Qg6 {[%emt 0:00:20]} 18. Ng4 {[%emt 0:38:22]} Bd6 {[%emt 0:00:13]} 19. Bc4 {[%emt 0:02:21]} Bxc4 {[%emt 0:00:10]} 20. Qxc4 {[%emt 0:00:02]} Qe6 {[%emt 0:00:11]} 21. Qxe6 {[%emt 0:03:24]} fxe6 {[%emt 0:01:24]} 22. b4 {[%emt 0:08:19]} axb3 {[%emt 0:00:29]} 23. axb3 {[%emt 0:00:02]} Na5 {[%emt 0:00:09]} 24. Rdb1 {[%emt 0:02:25]} b5 {[%emt 1:26:17]} 25. Nf1 {[%emt 0:29:52]} b4 {[%emt 0:00:00]} 26. Ra4 {[%emt 0:00:30] [#] And now Rba1 would win.} Nc6 {[%emt 0:00:00] Hoping for ...Rxa4.} ({Much less strong is} 26... bxc3 27. Rba1 $14) 27. cxb4 {[%emt 0:00:00]} Nxb4 {[%emt 0:00:00]} 28. Rxa8 {[%emt 0:00:00]} Rxa8 {[%emt 0:00:00]} 29. Bd2 {[%emt 0:00:00]} Nc6 {[%emt 0:00:00]} 30. f3 {[%emt 0:02:00]} Nd4 {[%emt 0:00:00]} 31. b4 {[%emt 0:00:00]} Ra2 {[%emt 0:00:00]} 32. Nge3 {[%emt 0:00:00]} Nb6 {[%emt 0:00:00] Prevents Nc4.} 33. Be1 {[%emt 0:00:00]} Ne2+ {[%emt 0:00:00]} 34. Kh2 {[%emt 0:00:00]} Nd4 {[%emt 0:00:00] aiming for ...Nxf3+.} 35. Kg1 {[%emt 0:00:00]} Ne2+ {[%emt 0:00:00]} 36. Kh2 {[%emt 0:00:00]} Nd4 {[%emt 0:00:00] Weighted Error Value: White=0.04 (flawless) /Black=0.04 (flawless)} (36... Kf7 $15) 1/2-1/2

[Event "GCT Superbet Romania 2022"]
[Site "Bucharest"]
[Date "2022.05.14"]
[Round "9.2"]
[White "Aronian, Levon"]
[Black "Mamedyarov, Shakhriyar"]
[Result "1/2-1/2"]
[ECO "C49"]
[WhiteElo "2765"]
[BlackElo "2770"]
[Annotator "TA"]
[PlyCount "72"]
[EventDate "2022.05.05"]
[EventType "tourn"]
[EventCountry "ROU"]
[SourceTitle "playchess.com"]
[Source "ChessBase"]
[SourceQuality "1"]
[TimeControl "40/5400+30:1800+30"]

{[%evp 12,72,9,2,4,12,7,7,16,14,10,20,16,22,28,26,39,12,12,15,11,11,11,11,14,12,20,0,0,0,0,0,0,0,0,0,0,0,0,0,0,0,0,0,0,0,0,0,0,0,0,0,0,0,0,0,0,0,0,0,0,0,0]} 1. e4 {[%emt 0:00:05]} e5 {[%emt 0:00:04]} 2. Nf3 {[%emt 0:00:04]} Nc6 {[%emt 0:00:04]} 3. Nc3 {[%emt 0:00:05]} Nf6 {[%emt 0:04:17]} 4. Bb5 {[%emt 0:00:06]} Bb4 {[%emt 0:03:08]} 5. O-O {[%emt 0:00:08]} O-O {[%emt 0:00:17]} 6. Bxc6 {[%emt 0:00:03]} dxc6 {[%emt 0:00:21]} 7. Nxe5 {[%emt 0:00:06]} Bxc3 {[%emt 0:00:29] C49: Four Knights: 4 Bb5 Bb4.} 8. dxc3 {[%emt 0:00:05]} Nxe4 {[%emt 0:00:55]} 9. Bf4 {[%emt 0:00:49][%cal Bc1f4,Bf4e5,Be5g3][%mdl 32] has lost popularity (9.Qxd8).} Qf6 {[%emt 0:01:45]} 10. Nd3 {[%emt 0:00:53]} Nd6 {[%emt 0:00:35]} 11. Re1 {[%emt 0:05:07]} Bf5 {[%emt 0:00:53] [#]} 12. Be5 $146 {[%emt 0:00:41]} ({Predecessor:} 12. Qf3 Rfe8 {½-½ (12) Aronin,L-Zhukhovitsky,S Tbilisi 1957}) 12... Qh4 {[%emt 0:06:59]} 13. Qf3 {[%emt 0:03:35] [#] Threatens to win with Bxd6.} Be4 {[%emt 0:14:20]} 14. Qg3 {[%emt 0:01:38]} Qxg3 {[%emt 0:00:11] The position is equal.} 15. Bxg3 {[%emt 0:00:04]} Bxd3 {[%emt 0:00:25]} 16. cxd3 {[%emt 0:00:18]} Rfe8 {[%emt 0:01:48] Against Re7} 17. f3 {[%emt 0:00:33]} f6 {[%emt 0:00:59]} 18. Kf2 {[%emt 0:00:53]} Kf7 {[%emt 0:00:57]} 19. Bxd6 {[%emt 0:00:32]} cxd6 $11 {[%emt 0:00:07][%mdl 4096] Endgame KRR-KRR} 20. d4 {[%emt 0:00:04]} d5 {[%emt 0:00:05]} 21. a4 {[%emt 0:00:42]} a5 {[%emt 0:01:21]} 22. h4 {[%emt 0:04:54]} h5 {[%emt 0:00:35]} 23. Rxe8 {[%emt 0:03:13]} Rxe8 {[%emt 0:00:44] KR-KR} 24. b4 {[%emt 0:01:19]} Ra8 {[%emt 0:08:48]} 25. Rb1 {[%emt 0:00:53]} Kg6 {[%emt 0:11:19]} 26. b5 {[%emt 0:01:50]} Rc8 {[%emt 0:02:11]} 27. bxc6 {[%emt 0:00:05]} Rxc6 {[%emt 0:00:27]} 28. Rxb7 {[%emt 0:00:31]} Rxc3 {[%emt 0:00:07]} 29. Rb5 {[%emt 0:00:03]} Rc4 {[%emt 0:00:04]} 30. Rxd5 {[%emt 0:00:25]} Rxa4 {[%emt 0:00:03]} 31. Kg3 {[%emt 0:00:06]} Rb4 {[%emt 0:00:12]} 32. Rxa5 {[%emt 0:00:05]} Rxd4 {[%emt 0:00:02]} 33. Kh3 {[%emt 0:00:06]} Kh6 {[%emt 0:00:06]} 34. Kg3 {[%emt 0:00:03]} Kg6 {[%emt 0:00:05]} 35. Kh3 {[%emt 0:00:03]} Kh6 {[%emt 0:00:05]} 36. Kg3 {[%emt 0:00:04]} Kg6 {[%emt 0:00:05] Weighted Error Value: White=0.02 (flawless) /Black=0.01 (flawless)} 1/2-1/2

[Event "GCT Superbet Romania 2022"]
[Site "Bucharest"]
[Date "2022.05.14"]
[Round "9.3"]
[White "Firouzja, Alireza"]
[Black "Vachier-Lagrave, Maxime"]
[Result "0-1"]
[ECO "D78"]
[WhiteElo "2804"]
[BlackElo "2750"]
[Annotator "TA"]
[PlyCount "148"]
[EventDate "2022.05.05"]
[EventType "tourn"]
[EventCountry "ROU"]
[SourceTitle "playchess.com"]
[Source "ChessBase"]
[SourceQuality "1"]
[TimeControl "40/5400+30:1800+30"]

{[%evp 14,148,-3,13,2,17,14,12,2,-15,-12,-2,-16,-10,0,0,16,-12,13,11,17,13,14,0,18,16,22,12,13,16,22,22,27,0,0,0,0,0,0,0,17,14,66,29,29,16,19,19,22,0,0,-14,-4,-171,-156,-163,-145,-163,-171,-166,-164,-179,-173,-173,-174,-158,-132,-125,-112,-124,-173,-215,-206,-203,-178,-181,-166,-218,-118,-239,-225,-231,-224,-224,-224,-224,-224,-224,-217,-273,-237,-404,-404,-395,-373,-372,-372,-372,-368,-354,-354,-339,-317,-2696,-2696,-4230,-2299,-4572,-650,-5061,-962,-5061,-5061,-2910,-2923,-5061,-5061,-4871,-4879,-1893,-570,-5510,-4040,-3197,-3197,-29973,-29973,-29974,-29973,-29974,-29975,-29975,-29976,-29976,-29977,-29984,-29985]} 1. d4 {[%emt 0:00:30]} Nf6 {[%emt 0:00:07]} 2. c4 {[%emt 0:00:00]} g6 {[%emt 0:00:04]} 3. Nf3 {[%emt 0:00:48]} Bg7 {[%emt 0:00:06]} 4. g3 {[%emt 0:00:50]} c6 {[%emt 0:01:11]} 5. Bg2 {[%emt 0:00:10]} d5 {[%emt 0:00:04]} 6. O-O {[%emt 0:00:22]} O-O {[%emt 0:00:05]} 7. Ne5 {[%emt 0:00:50]} dxc4 {[%emt 0:06:35]} 8. Nxc4 {[%emt 0:03:21]} Be6 {[%emt 0:01:41] D78: Fianchetto Grünfeld: 6 0-0 c6.} 9. b3 {[%emt 0:05:00]} Bd5 {[%emt 0:05:33]} 10. Bb2 {[%emt 0:06:22]} Nbd7 $5 {[%emt 0:00:59][%cal Bb8d7,Bd7e5,Be5g4][%mdl 4] The position is equal. A promising side line.} 11. Nc3 {[%emt 0:05:20]} Bxg2 {[%emt 0:00:11]} 12. Kxg2 {[%emt 0:00:06] [#]} b5 $146 {[%emt 0:00:37]} ({Predecessor:} 12... Nb6 13. e4 Qc7 14. Qe2 Rfd8 15. Rfd1 Nfd7 16. Rac1 Nxc4 17. bxc4 Qb6 18. f4 Nf8 {1-0 (40) Bodyagin,A (1942)-Erastov,S (1692) Nizhnij Novgorod 2015}) 13. Nd2 {[%emt 0:25:40]} e5 {[%emt 0:05:04]} 14. dxe5 {[%emt 0:03:34]} Nxe5 {[%emt 0:00:08]} 15. Nde4 {[%emt 0:09:20]} Neg4 {[%emt 0:02:23]} 16. Nxf6+ {[%emt 0:06:31]} Nxf6 {[%emt 0:06:44]} (16... Qxf6 {seems wilder.} 17. e4 Qe6 18. Qc2 Rad8) 17. Qc2 {[%emt 0:00:14]} Qe7 {[%emt 0:00:37]} 18. Rfe1 {[%emt 0:01:41]} Qc5 {[%emt 0:19:25]} 19. Rac1 {[%emt 0:01:13]} Rfe8 {[%emt 0:01:10]} 20. Nd1 {[%emt 0:10:27][%cal Bc3d1,Bd1e3,Be3f1,Bf1d2,Bd2c4,Bc4d6][%mdl 32]} Qxc2 {[%emt 0:02:43]} 21. Rxc2 {[%emt 0:00:02]} Re6 {[%emt 0:05:28]} 22. Ne3 {[%emt 0:03:59]} Rd8 {[%emt 0:05:20]} 23. Nf1 {[%emt 0:07:05]} Nd5 {[%emt 0:02:03] [#] Strongly threatening ...Nb4.} 24. Bxg7 {[%emt 0:00:08]} Kxg7 {[%emt 0:00:06]} 25. a3 {[%emt 0:02:57] Prevents Nb4.} a5 {[%emt 0:03:46]} 26. Nd2 {[%emt 0:02:48]} b4 {[%emt 0:05:44]} 27. a4 {[%emt 0:00:31]} Re3 {[%emt 0:00:54]} 28. Rxc6 {[%emt 0:01:04]} (28. Rb2 $5 {[%cal Rf2e3]} Re7 29. Nc4 $14) 28... Rc3 {[%emt 0:00:09]} 29. Nc4 {[%emt 0:01:27]} Rxb3 {[%emt 0:00:04]} 30. e4 {[%emt 0:00:44]} Re8 {[%emt 0:08:24]} 31. Nd6 {[%emt 0:02:17]} Re6 {[%emt 0:01:29]} 32. Rd1 {[%emt 0:00:30]} Nf6 {[%emt 0:03:41]} 33. e5 {[%emt 0:00:32]} (33. Rd4 $11 {and White is okay.}) 33... Ng4 $19 {[%emt 0:00:13]} ({But not} 33... Rxe5 34. Rc7 Nd5 35. Rxf7+ Kg8 36. Rd7 $16) 34. Rc7 {[%emt 0:00:32]} Nxe5 {[%emt 0:00:10]} 35. f4 {[%emt 0:00:31]} Rd3 {[%emt 0:05:14]} 36. Rxd3 {[%emt 0:00:18]} Nxd3 {[%emt 0:00:06]} 37. Rxf7+ {[%emt 0:00:44][%mdl 4096] Endgame KRN-KRN} Kg8 {[%emt 0:00:15]} 38. Rd7 {[%emt 0:00:02] [#]} b3 $1 {[%emt 0:01:33] White must now prevent ...b2.} 39. Rd8+ {[%emt 0:00:52]} Kg7 {[%emt 0:00:06] aiming for ...b2. Black is more active.} 40. Rd7+ {[%emt 0:00:00]} Kf8 {[%emt 0:00:00]} 41. Nc4 {[%emt 0:12:47]} b2 {[%emt 0:02:24]} 42. Nxb2 {[%emt 0:04:12]} Nxb2 {[%emt 0:00:24] KRN-KR} 43. Ra7 {[%emt 0:00:16]} Nxa4 {[%emt 0:04:52]} 44. Rxa5 {[%emt 0:00:50]} Nb6 {[%emt 0:03:39]} 45. g4 {[%emt 0:07:37]} (45. f5 $142 Re2+ 46. Kh3) 45... Nd7 {[%emt 0:03:50]} (45... Rd6 $19 46. f5 gxf5 47. Rxf5+ Kg7) 46. Kg3 {[%emt 0:01:02]} (46. f5 $17 gxf5 47. Rxf5+ Kg7 48. Ra5) 46... Re3+ {[%emt 0:01:02]} 47. Kh4 {[%emt 0:01:53]} Nf6 {[%emt 0:04:09]} 48. Ra8+ {[%emt 0:02:20]} Kf7 {[%emt 0:04:57]} 49. Ra7+ {[%emt 0:00:41]} Re7 {[%emt 0:00:30]} 50. Ra5 {[%emt 0:00:31]} Ne4 {[%emt 0:01:39]} 51. f5 {[%emt 0:03:06]} Rd7 {[%emt 0:04:05] Hoping for ...Rd3.} 52. fxg6+ $2 {[%emt 0:01:11]} (52. Ra4 {was worth a try.} Re7 53. fxg6+ hxg6 54. Kh3) 52... hxg6 {[%emt 0:00:08]} 53. Ra4 {[%emt 0:00:22]} Re7 {[%emt 0:04:41]} 54. Ra5 {[%emt 0:00:27]} Kf6 {[%emt 0:02:42]} 55. g5+ {[%emt 0:00:34]} Kf7 {[%emt 0:00:36]} 56. Kg4 {[%emt 0:00:46]} Nd6 {[%emt 0:00:23]} 57. Ra4 {[%emt 0:00:26]} Nf5 {[%emt 0:00:31]} 58. h4 $2 {[%emt 0:00:12]} (58. Kf3) 58... Ng7 {[%emt 0:00:06]} 59. Kf3 {[%emt 0:00:43]} Nh5 {[%emt 0:00:29] ...Re5 is the strong threat.} 60. Rb4 {[%emt 0:00:18]} Rd7 {[%emt 0:00:45]} (60... Re1 $142 61. Rb6 Rf1+ 62. Kg2 Rf4) 61. Kg4 {[%emt 0:00:39]} Rd6 {[%emt 0:00:45]} (61... Rd1 $142 62. Rb6 Rd4+ 63. Kh3 Ra4) 62. Re4 {[%emt 0:00:16]} Rd1 {[%emt 0:00:38]} ({Not} 62... Rd3 63. Re7+ Kg8 64. Re8+ Kf7 65. Re7+ Kg8 66. Re8+ Kh7 67. Rh8+ Kg7 68. Rg8+ Kh7 69. Rxg6 Kxg6 $11) 63. Ra4 {[%emt 0:00:56]} Ke6 {[%emt 0:00:27]} 64. Ra6+ {[%emt 0:00:10]} Rd6 {[%emt 0:00:06]} 65. Ra4 {[%emt 0:00:48]} Ke5 {[%emt 0:01:03]} 66. Ra3 {[%emt 0:00:21]} Rd4+ {[%emt 0:00:16]} (66... Ke4 $142 {( -> ...Rd2)} 67. Ra7 Rd4 68. Re7+ Kd3+ 69. Kf3 Rf4+ 70. Kg2 Rxh4) 67. Kh3 {[%emt 0:00:07]} Kf5 {[%emt 0:00:24]} 68. Ra5+ {[%emt 0:00:07]} Ke4 {[%emt 0:00:41]} 69. Kg4 {[%emt 0:00:48]} Ke3+ {[%emt 0:00:07] Black mates.} 70. Kh3 {[%emt 0:00:05]} Re4 {[%emt 0:00:53]} 71. Ra1 {[%emt 0:00:30]} Kf2 {[%emt 0:00:17]} 72. Ra2+ {[%emt 0:01:07]} Kf3 {[%emt 0:00:05]} 73. Ra3+ {[%emt 0:00:59]} Re3 {[%emt 0:00:04]} 74. Ra4 {[%emt 0:00:18]} Nf4+ {[%emt 0:00:09] Weighted Error Value: White=0.51/Black=0.21 (precise)} 0-1

[Event "GCT Superbet Romania 2022"]
[Site "Bucharest"]
[Date "2022.05.14"]
[Round "9.4"]
[White "Deac, Bogdan-Daniel"]
[Black "Caruana, Fabiano"]
[Result "1/2-1/2"]
[ECO "D17"]
[WhiteElo "2671"]
[BlackElo "2786"]
[Annotator "TA"]
[PlyCount "109"]
[EventDate "2022.05.05"]
[EventType "tourn"]
[EventCountry "ROU"]
[SourceTitle "playchess.com"]
[Source "ChessBase"]
[SourceQuality "1"]
[TimeControl "40/5400+30:1800+30"]

{[%evp 20,109,26,25,20,14,13,6,6,6,6,6,6,0,6,6,6,14,13,6,6,4,4,8,8,8,8,8,8,11,10,0,0,0,0,4,8,8,8,0,0,0,0,0,0,0,0,0,0,0,0,0,0,0,0,0,0,0,0,0,0,0,8,8,10,10,10,8,25,6,25,25,25,25,25,25,25,18,18,18,20,20,25,25,25,25,25,0,25,0,25,0]} 1. d4 {[%emt 0:00:03]} d5 {[%emt 0:00:06]} 2. c4 {[%emt 0:00:20]} c6 {[%emt 0:00:04]} 3. Nf3 {[%emt 0:00:07][%cal Bg1f3,Bf3e5,Be5c4][%mdl 32]} Nf6 {[%emt 0:00:08]} 4. Nc3 {[%emt 0:00:07]} dxc4 {[%emt 0:00:11]} 5. a4 {[%emt 0:00:16]} Bf5 {[%emt 0:00:18]} 6. Ne5 {[%emt 0:00:43]} Nbd7 {[%emt 0:00:25]} 7. Nxc4 {[%emt 0:00:11]} Qc7 {[%emt 0:00:12]} 8. g3 {[%emt 0:02:29]} e5 {[%emt 0:00:35]} 9. dxe5 {[%emt 0:00:17]} Nxe5 {[%emt 0:00:04]} 10. Bf4 {[%emt 0:00:07]} Nfd7 {[%emt 0:00:07]} 11. Bg2 {[%emt 0:00:37]} g5 $1 {[%emt 0:00:11] The main line 11...g5 scores better than 11...f6. D17: Slav Defence: 5 a4 Bf5: Lines with 6 Nh4 and 6 Ne5.} 12. Bxe5 {[%emt 0:02:06]} Nxe5 {[%emt 0:00:55]} 13. Qd4 {[%emt 0:00:16]} f6 {[%emt 0:00:58] The position is equal.} 14. O-O-O {[%emt 0:00:40]} Be6 {[%emt 0:16:26] [#] This bishop pair is nice.} 15. f4 $1 {[%emt 0:05:19]} gxf4 {[%emt 0:06:54] [#]} ({Don't play} 15... Nxc4 16. Qxf6 Bg4 17. Qxh8 $16) 16. gxf4 $1 {[%emt 0:00:30][%cal Bg3f4,Bf4e5,Be5f6][%mdl 32]} Rd8 {[%emt 0:10:02]} 17. Qxd8+ {[%emt 0:07:01]} Qxd8 {[%emt 0:00:23]} 18. Rxd8+ {[%emt 0:00:02]} Kxd8 {[%emt 0:00:05]} 19. fxe5 {[%emt 0:00:09] Strongly threatening Nd6.} Bxc4 {[%emt 0:00:05]} 20. exf6 {[%emt 0:00:06]} Kc7 {[%emt 0:06:16]} 21. Be4 {[%emt 0:10:59] [#]} Bh6+ $146 {[%emt 0:05:49]} ({Predecessor:} 21... Bd6 22. Bd3 Bb3 23. Ne4 Be5 24. Rg1 Rg8 25. Rf1 Rf8 26. Rf5 Bxh2 27. e3 Rd8 {½-½ (45) Civitillo,A (2389)-Meiners,E (2360) ICCF email 2015}) 22. Kc2 {[%emt 0:00:44]} Bg5 {[%emt 0:01:03]} 23. Rf1 {[%emt 0:00:55]} Rf8 $1 {[%emt 0:00:47]} 24. Bxh7 {[%emt 0:05:12] aiming for b3.} Rxf6 {[%emt 0:01:22]} 25. Rxf6 {[%emt 0:13:01]} Bxf6 $11 {[%emt 0:00:25][%mdl 4096] Endgame KBB-KBN} 26. Bd3 {[%emt 0:00:16]} Be6 {[%emt 0:01:01]} 27. Ne4 {[%emt 0:01:05]} Be7 {[%emt 0:01:49]} 28. Kc3 {[%emt 0:01:26]} a5 {[%emt 0:08:03]} 29. Bc4 {[%emt 0:03:51]} Bd7 {[%emt 0:02:18]} 30. b3 {[%emt 0:03:40]} b5 {[%emt 0:03:36]} 31. Bd3 {[%emt 0:07:43]} Kb6 {[%emt 0:01:38]} 32. Kc2 {[%emt 0:01:48]} Bh4 {[%emt 0:02:26]} 33. Kc3 {[%emt 0:04:59]} Be7 {[%emt 0:03:01]} 34. Bc2 {[%emt 0:14:30]} Bg4 {[%emt 0:04:12]} 35. Kd3 {[%emt 0:08:14]} Bd8 {[%emt 0:12:25]} 36. Ke3 {[%emt 0:01:36]} Bc7 {[%emt 0:07:01]} 37. h4 {[%emt 0:00:31]} Bd8 {[%emt 0:00:05] Against Nf6} 38. Ng5 {[%emt 0:00:17]} Be7 {[%emt 0:00:33]} 39. Bg6 {[%emt 0:05:47]} Kc5 {[%emt 0:03:12]} 40. Be8 {[%emt 0:00:00]} bxa4 {[%emt 0:00:00]} 41. bxa4 {[%emt 0:01:05]} Kd5 {[%emt 0:05:07]} 42. Kd3 {[%emt 0:08:21]} c5 {[%emt 0:01:47]} 43. Bb5 {[%emt 0:02:27] Inhibits c4+.} Ke5 {[%emt 0:01:30]} 44. Ke3 {[%emt 0:02:51]} c4 {[%emt 0:09:07]} 45. Bxc4 {[%emt 0:01:24]} Bc5+ {[%emt 0:00:06]} 46. Kd3 {[%emt 0:00:06]} Bf2 {[%emt 0:00:17]} 47. Nf7+ {[%emt 0:01:34]} Kf6 {[%emt 0:04:59]} 48. Nd8 {[%emt 0:01:02]} Bxh4 {[%emt 0:00:21]} 49. Nc6 {[%emt 0:00:05]} Bd7 {[%emt 0:00:10]} 50. Bb5 {[%emt 0:00:06]} Bxc6 {[%emt 0:00:04]} 51. Bxc6 {[%emt 0:00:07]} Ke5 {[%emt 0:00:02]} 52. Bf3 {[%emt 0:00:07]} Be1 {[%emt 0:00:05]} 53. Bc6 {[%emt 0:00:03]} Bh4 {[%emt 0:00:03]} 54. Bf3 {[%emt 0:00:04]} Be1 {[%emt 0:00:05]} 55. Bc6 {[%emt 0:00:02] A balanced but interesting game.  Weighted Error Value: White=0.03 (flawless) /Black=0.02 (flawless)} 1/2-1/2

[Event "GCT Superbet Romania 2022"]
[Site "Bucharest"]
[Date "2022.05.14"]
[Round "9.5"]
[White "Rapport, Richard"]
[Black "Nepomniachtchi, Ian"]
[Result "1/2-1/2"]
[ECO "E36"]
[WhiteElo "2776"]
[BlackElo "2773"]
[Annotator "TA"]
[PlyCount "83"]
[EventDate "2022.05.05"]
[EventType "tourn"]
[EventCountry "ROU"]
[SourceTitle "playchess.com"]
[Source "ChessBase"]
[SourceQuality "1"]
[TimeControl "40/5400+30:1800+30"]

{[%evp 12,83,9,13,14,4,17,10,19,0,0,-31,0,0,0,-12,-13,-8,-3,-6,46,46,38,44,40,45,43,52,52,56,60,60,64,55,234,87,85,79,92,70,69,80,74,0,0,0,0,0,45,27,29,29,43,29,29,9,10,9,9,9,9,9,18,28,31,9,25,10,10,0,25,0,26,0]} 1. d4 {[%emt 0:00:52]} Nf6 {[%emt 0:00:05]} 2. c4 {[%emt 0:00:16]} e6 {[%emt 0:00:04]} 3. Nc3 {[%emt 0:00:33]} Bb4 {[%emt 0:00:06]} 4. Qc2 {[%emt 0:00:18]} O-O {[%emt 0:00:10]} 5. a3 {[%emt 0:00:27]} Bxc3+ {[%emt 0:00:09]} 6. Qxc3 {[%emt 0:00:08]} d5 {[%emt 0:00:20] seems to push 6...b6 aside.} 7. Bg5 {[%emt 0:00:16]} dxc4 {[%emt 0:00:22] E36: Nimzo-Indian: Classical: 4...d5 5 a3.} 8. Qxc4 {[%emt 0:00:29]} b6 {[%emt 0:00:17]} 9. Rd1 {[%emt 0:00:28]} Ba6 {[%emt 0:00:40] [#] The position is equal.} 10. Qc1 $146 {[%emt 0:00:42]} ({Predecessor:} 10. Qa4 h6 11. Bh4 Qe7 12. Nf3 Rd8 13. g4 Bb7 14. Bg2 Nbd7 15. Rg1 c5 16. g5 hxg5 17. Nxg5 Bxg2 18. Rxg2 {½-½ (36) Mamedyarov,S (2782)-Nakamura,H (2736) Saint Louis 2021}) 10... Nbd7 {[%emt 0:01:54]} 11. Nf3 {[%emt 0:00:30]} Rc8 {[%emt 0:05:14]} 12. e4 {[%emt 0:01:34]} Bxf1 {[%emt 0:00:12]} 13. Kxf1 {[%emt 0:04:05]} h6 {[%emt 0:01:30]} 14. Bh4 {[%emt 0:05:00] [#] Black must now prevent e5.} Qe8 {[%emt 0:00:48]} 15. Qc6 {[%emt 0:00:14]} Nb8 {[%emt 0:00:04]} (15... g5 $11 16. Bg3 Nb8 17. Qxe8 Rfxe8) 16. Qxe8 $14 {[%emt 0:00:57]} Rfxe8 {[%emt 0:00:01]} 17. Bxf6 {[%emt 0:00:15]} gxf6 {[%emt 0:00:03]} 18. Rc1 {[%emt 0:14:17]} c5 {[%emt 0:02:39]} 19. dxc5 {[%emt 0:01:21][%cal Bd4c5,Bc5c6,Bc6c7][%mdl 32]} Nd7 {[%emt 0:10:06]} 20. c6 {[%emt 0:01:36][%cal Oc6d7]} Nb8 {[%emt 0:00:06]} 21. c7 {[%emt 0:07:45]} Na6 {[%emt 0:00:53]} 22. Nd4 {[%emt 0:00:52] Strongly threatening Nb5.} Nc5 $2 {[%emt 0:07:57]} (22... Rxc7 $14 23. Rxc7 Nxc7) 23. Nb5 {[%emt 0:06:16]} (23. b4 $18) 23... Re7 $16 {[%emt 0:00:27]} 24. Ke2 {[%emt 0:01:16] Rhd1 is the strong threat.} a6 {[%emt 0:01:13] [#]} 25. Rhd1 $1 {[%emt 0:00:36]} Kh7 $1 {[%emt 0:01:14]} 26. Nd6 {[%emt 0:11:21] White is more active.} Rcxc7 {[%emt 0:00:19]} 27. f4 {[%emt 0:08:20]} (27. b4 $16 Nb3 28. Rxc7 Rxc7 29. Ne8) 27... Nb3 $11 {[%emt 0:01:52]} 28. Rxc7 {[%emt 0:06:11]} Rxc7 {[%emt 0:00:18][%mdl 4096] Endgame KRN-KRN} 29. Kf3 {[%emt 0:01:28]} Rd7 {[%emt 0:02:15]} 30. e5 {[%emt 0:02:58]} fxe5 {[%emt 0:02:17]} 31. fxe5 {[%emt 0:00:07]} Nc5 {[%emt 0:05:06]} 32. Rd4 {[%emt 0:05:24]} Nb7 {[%emt 0:02:53]} 33. Ke3 {[%emt 0:02:26] Threatens to win with Nc4.} Nxd6 {[%emt 0:00:54]} 34. Rxd6 {[%emt 0:00:16] KR-KR} Rb7 {[%emt 0:00:03]} 35. b4 {[%emt 0:01:55]} Kg6 {[%emt 0:00:55]} 36. Ke4 {[%emt 0:00:19]} a5 {[%emt 0:00:44]} 37. b5 {[%emt 0:01:38]} h5 {[%emt 0:00:31]} 38. h4 {[%emt 0:02:31]} Kg7 {[%emt 0:00:35]} 39. Kf4 {[%emt 0:00:33]} Kg6 {[%emt 0:00:05]} 40. Ke4 {[%emt 0:00:00]} Kg7 {[%emt 0:00:00]} 41. Kf4 {[%emt 0:02:42]} Kg6 {[%emt 0:00:20]} 42. Ke4 {[%emt 0:00:05] Weighted Error Value: White=0.13 (very precise) /Black=0.16 (very precise)} 1/2-1/2